[Event "SWE-ch Masters Elite 2019"]
[Site "Eskilstuna"]
[Date "2019.07.14"]
[Round "9.5"]
[White "Seo, Jung Min"]
[Black "Rydstrom, Tom"]
[Result "1-0"]
[ECO "A25"]
[WhiteElo "2399"]
[BlackElo "2345"]
[Annotator "NA"]
[PlyCount "183"]
[EventDate "2019.07.06"]
[EventType "tourn"]
[EventCountry "SWE"]
[SourceTitle "playchess.com"]
[Source "ChessBase"]
[SourceQuality "1"]
[TimeControl "40/5400+30:1800+30"]

1. c4 {[%emt 0:00:00]} e5 {[%emt 0:00:00]} 2. Nc3 {[%emt 0:00:00]} Nc6 {[%emt 0:01:19]} 3. g3 {[%emt 0:00:03]} Bc5 {[%emt 0:02:03]} 4. Bg2 {[%emt 0:00:46]} a6 {[%emt 0:00:03]} 5. e3 {[%emt 0:00:39]} d6 {[%emt 0:00:15]} 6. Nge2 {[%emt 0:00:47]} Ba7 {[%emt 0:00:05]} 7. Rb1 {[%emt 0:01:40]} h5 {[%emt 0:01:39]} 8. h4 {[%emt 0:03:45]} Nf6 {[%emt 0:00:41]} 9. b4 {[%emt 0:01:26]} O-O {[%emt 0:00:42]} 10. a4 {[%emt 0:02:12]} a5 $11 {[%emt 0:03:03]} 11. bxa5 {[%emt 0:04:02]} Nxa5 {[%emt 0:00:16]} 12. d3 {[%emt 0:00:03]} Re8 {[%emt 0:01:31]} 13. O-O {[%emt 0:04:02]} Bg4 {[%emt 0:08:38]} 14. Kh2 {[%emt 0:04:33]} Bf5 {[%emt 0:10:47]} 15. f3 {[%emt 0:00:26]} Bh7 {[%emt 0:05:16]} 16. e4 {[%emt 0:01:44]} Nd7 {[%emt 0:00:39]} 17. Qc2 {[%emt 0:04:15]} Nc6 {[%emt 0:04:28]} 18. Bh3 {[%emt 0:05:57]} Nd4 {[%emt 0:12:03]} 19. Nxd4 {[%emt 0:00:33]} Bxd4 {[%emt 0:00:01]} 20. Rxb7 {[%emt 0:08:13]} Bb6 {[%emt 0:03:17]} 21. Ba3 {[%emt 0:01:16]} f5 {[%emt 0:18:55]} 22. exf5 {[%emt 0:16:31]} Qc8 {[%emt 0:00:14]} 23. f6 {[%emt 0:02:16]} Qxb7 {[%emt 0:04:54]} 24. Bxd7 {[%emt 0:00:20]} Rf8 {[%emt 0:00:32]} 25. Be6+ {[%emt 0:00:53]} Kh8 {[%emt 0:00:03]} 26. fxg7+ {[%emt 0:00:12]} Kxg7 {[%emt 0:00:01]} 27. Bd5 {[%emt 0:02:50]} c6 {[%emt 0:00:03]} 28. Be4 {[%emt 0:00:09]} Qd7 {[%emt 0:09:49]} 29. Qc1 {[%emt 0:03:25]} Bd4 {[%emt 0:00:50]} 30. Bxh7 {[%emt 0:01:02]} Kxh7 {[%emt 0:00:31]} 31. Bb2 {[%emt 0:04:17]} Bxc3 {[%emt 0:01:33]} 32. Qxc3 {[%emt 0:00:01]} c5 {[%emt 0:01:01]} 33. a5 {[%emt 0:00:40]} Rab8 {[%emt 0:01:52]} 34. Bc1 {[%emt 0:00:28]} Qb7 {[%emt 0:01:17]} 35. Qd2 {[%emt 0:00:39]} Qg7 {[%emt 0:00:13]} 36. Qe2 {[%emt 0:01:57]} Qg6 {[%emt 0:00:10]} 37. Bg5 {[%emt 0:00:52]} Rb3 {[%emt 0:01:12]} 38. Rd1 {[%emt 0:00:03]} Ra8 {[%emt 0:00:14]} 39. f4 {[%emt 0:01:20]} Rf8 {[%emt 0:06:45]} 40. fxe5 {[%emt 0:01:23]} Re8 {[%emt 0:00:10]} 41. Rd2 {[%emt 0:33:16]} Rxe5 {[%emt 0:31:21]} 42. Qf3 {[%emt 0:01:57]} Rf5 {[%emt 0:00:00]} 43. Bf4 {[%emt 0:00:00]} Rf7 {[%emt 0:00:00]} 44. Qd5 {[%emt 0:00:00]} Ra3 {[%emt 0:00:00]} 45. Qxd6 {[%emt 0:00:00]} Qxd6 {[%emt 0:00:00]} 46. Bxd6 {[%emt 0:00:00]} Rxa5 {[%emt 0:00:00]} 47. Bf4 {[%emt 0:00:00]} Rd7 {[%emt 0:00:00]} 48. Kg2 {[%emt 0:00:00]} Ra3 {[%emt 0:00:00]} 49. Re2 {[%emt 0:00:00]} Rdxd3 {[%emt 0:00:00]} 50. Re5 {[%emt 0:00:00]} Kg6 {[%emt 0:01:04]} 51. Rg5+ {[%emt 0:00:00]} Kh6 {[%emt 0:00:06]} 52. Rxc5+ {[%emt 0:00:00]} Kg6 {[%emt 0:00:02]} 53. Rg5+ {[%emt 0:00:00]} Kh6 {[%emt 0:03:24]} 54. Rb5+ {[%emt 0:04:15]} Kg6 {[%emt 0:00:02]} 55. Rb6+ {[%emt 0:00:12]} Kg7 {[%emt 0:01:47]} 56. Be5+ {[%emt 0:01:39]} Kh7 {[%emt 0:00:21]} 57. Rb7+ {[%emt 0:01:24]} Kg6 {[%emt 0:00:12]} 58. Rb6+ {[%emt 0:00:56]} Kh7 {[%emt 0:00:42]} 59. Bf4 {[%emt 0:02:01]} Kg7 {[%emt 0:00:01]} 60. Rb2 {[%emt 0:00:18]} Kg6 {[%emt 0:01:07]} 61. c5 {[%emt 0:00:49]} Rdc3 {[%emt 0:02:25]} 62. Bd6 {[%emt 0:04:28]} Ra4 {[%emt 0:00:24]} 63. Re2 {[%emt 0:00:45]} Rac4 {[%emt 0:00:43]} 64. Re6+ {[%emt 0:00:33]} Kf7 {[%emt 0:00:36]} 65. Re5 {[%emt 0:00:13]} Rc2+ {[%emt 0:00:28]} 66. Kh3 {[%emt 0:00:04]} Kg6 {[%emt 0:00:38]} 67. Rg5+ {[%emt 0:00:04]} Kh6 {[%emt 0:00:30]} 68. Bf8+ {[%emt 0:00:04]} Kh7 {[%emt 0:00:01]} 69. Rxh5+ {[%emt 0:00:05]} Kg6 {[%emt 0:00:11]} 70. Rg5+ {[%emt 0:00:05]} Kh7 {[%emt 0:00:38]} 71. Rg7+ {[%emt 0:01:21]} Kh6 {[%emt 0:00:51]} 72. Ra7+ {[%emt 0:00:29]} Kg6 {[%emt 0:00:06]} 73. Ra6+ {[%emt 0:00:18]} Kf7 {[%emt 0:00:34]} 74. Bd6 {[%emt 0:00:17]} Kg6 {[%emt 0:00:37]} 75. Ra1 {[%emt 0:00:20]} Re2 {[%emt 0:00:29]} 76. Rd1 {[%emt 0:00:17]} Rec2 {[%emt 0:00:48]} 77. Rd5 {[%emt 0:00:08]} Kh6 {[%emt 0:00:45]} 78. h5 {[%emt 0:00:27]} Rf2 {[%emt 0:00:21]} 79. Bf4+ {[%emt 0:00:12]} Rfxf4 {[%emt 0:00:40]} 80. gxf4 {[%emt 0:00:04]} Rxf4 {[%emt 0:00:03]} 81. Kg3 {[%emt 0:00:07]} Rc4 {[%emt 0:00:01]} 82. Kf3 {[%emt 0:00:07]} Kg7 {[%emt 0:00:49]} 83. Ke3 {[%emt 0:00:16]} Kh6 {[%emt 0:00:13]} 84. Kd3 {[%emt 0:00:04]} Rc1 {[%emt 0:00:03]} 85. Kd4 {[%emt 0:00:13]} Rc2 {[%emt 0:00:27]} 86. Rf5 {[%emt 0:00:07]} Rc1 {[%emt 0:00:20]} 87. Kd5 {[%emt 0:00:04]} Rd1+ {[%emt 0:00:10]} 88. Kc6 {[%emt 0:00:04]} Rc1 {[%emt 0:00:06]} 89. Kd6 {[%emt 0:00:03]} Rd1+ {[%emt 0:00:22]} 90. Kc7 {[%emt 0:00:04]} Rc1 {[%emt 0:00:08]} 91. c6 {[%emt 0:00:03]} Rc2 {[%emt 0:00:07]} 92. Rd5 {[%emt 0:01:00]} 1-0